bitfinex/quotes_SOLUSD_20251126
["timestamp","ask_amount","ask_price","bid_price","bid_amount"]
[1764122360044,25.9078904,140.17,140.13,0.67]
[1764122360348,0.68,140.16,140.13,0.67]
[1764122361044,7.81481867,140.16,140.13,0.67]
[1764122361828,7.13481867,140.16,140.13,0.67]
[1764122362752,7.81481867,140.16,140.13,0.67]
[1764122365256,16.99607128,140.21,140.13,0.67]
[1764122365257,0.67,140.21,140.15,2.46462974]
[1764122365430,0.67,140.21,140.18,2.46462974]
[1764122365823,0.67,140.21,140.14,19.36383414]
[1764122366028,0.67,140.21,140.17,2.46462974]
[1764122367154,0.67,140.21,140.17,9.59864227]
[1764122367355,7.80224375,140.21,140.16,7.13454275]
[1764122367656,10.26687349,140.21,140.16,9.59917249]
[1764122367842,0.67,140.2,140.16,9.59917249]
[1764122368665,7.80267127,140.2,140.16,9.59917249]
[1764122368831,0.67,140.19,140.16,9.59917249]
[1764122369157,0.67,140.19,140.16,2.46462974]
[1764122371259,0.67,140.19,140.15,9.59971686]
[1764122372260,7.80324203,140.19,140.15,9.59971686]
[1764122372631,0.67,140.18,140.15,9.59971686]
[1764122372828,0.67,140.18,140.16,2.46462974]
[1764122373056,0.67,140.18,140.15,9.59971686]
[1764122373232,0.67,140.18,140.15,7.13508712]
[1764122373439,0.67,140.18,140.15,9.59971686]
[1764122374755,10.96277263,140.2,140.16,2.46462974]
[1764122374931,0.67,140.19,140.16,2.46462974]
[1764122375132,0.67,140.19,140.16,9.59898366]
[1764122375533,0.67,140.19,140.16,2.46462974]
[1764122377434,7.80322792,140.19,140.16,2.46462974]
[1764122377661,7.80322792,140.19,140.15,7.13502904]
[1764122377861,0.67,140.18,140.15,2.46462974]
[1764122379365,0.67,140.18,140.15,9.59967425]
[1764122381361,0.67,140.18,140.14,7.13530961]
[1764122381670,0.67,140.18,140.15,2.46462974]
[1764122382683,7.13279819,140.2,140.16,2.46462974]
[1764122382850,0.67,140.19,140.16,2.46462974]
[1764122384382,0.67,140.19,140.16,9.5991643]
[1764122385376,0.67,140.19,140.16,9.59917966]
[1764122386077,0.67,140.19,140.17,2.46462974]
[1764122386283,7.80319567,140.19,140.15,7.13501125]
[1764122386579,7.80319567,140.19,140.15,3.85361668]
[1764122386759,0.67,140.18,140.15,3.85361668]
[1764122386954,0.67,140.18,140.16,3.85361668]
[1764122387157,7.13282213,140.2,140.17,3.85361668]
[1764122387158,0.67,140.2,140.17,3.85361668]
[1764122387467,0.67,140.21,140.18,3.85361668]
[1764122387670,0.67,140.21,140.19,3.85361668]
[1764122387863,7.13135313,140.23,140.2,3.85361668]
[1764122388181,0.67,140.22,140.2,3.85361668]
[1764122389155,0.67,140.23,140.21,3.85361668]
[1764122389464,8.00019408,140.25,140.22,3.85361668]
[1764122389869,3.83,140.24,140.17,42.95393289]
[1764122390179,7.68361668,140.24,140.18,3.85361668]
[1764122390361,0.67,140.23,140.18,3.85361668]
[1764122391185,7.13165026,140.22,140.18,3.85361668]
[1764122391782,0.67,140.21,140.18,10.98728459]
[1764122394894,0.67,140.21,140.19,3.85361668]
[1764122395685,0.67,140.21,140.18,10.98728459]
[1764122401794,7.80223436,140.21,140.16,3.16]
[1764122401976,11.65585104,140.21,140.16,3.16]
[1764122402176,0.69,140.2,140.16,7.01361668]
[1764122402883,0.69,140.2,140.17,3.85361668]
[1764122403263,0.69,140.2,140.17,7.1340593]
[1764122403577,105.15480045,140.24,140.18,3.85361668]
[1764122403578,123.67538727,140.24,140.18,3.85361668]
[1764122403811,0.69,140.23,140.21,3.85361668]
[1764122404510,0.2,140.25,140.22,3.85361668]
[1764122404711,0.2,140.25,140.23,3.85361668]
[1764122404905,0.89,140.25,140.23,3.85361668]
[1764122405102,0.89,140.25,140.19,11.96994492]
[1764122405296,0.69,140.24,140.2,10.98581972]
[1764122406110,0.69,140.24,140.22,3.85361668]
[1764122406322,0.2,140.25,140.23,3.85361668]
[1764122406492,0.89,140.25,140.23,3.85361668]
[1764122407621,0.89,140.25,140.23,10.98470348]
[1764122408310,0.2,140.25,140.24,3.85361668]
[1764122408691,0.2,140.25,140.23,7.1310868]
[1764122408887,0.2,140.25,140.24,3.85361668]
[1764122410319,0.2,140.25,140.23,7.01361668]
[1764122410501,0.69,140.24,140.21,3.85361668]
[1764122410700,0.69,140.24,140.2,14.14615656]
[1764122411489,7.82068489,140.24,140.2,14.14615656]
[1764122411995,0.69,140.23,140.2,14.14615656]
[1764122413521,0.69,140.23,140.2,7.01361668]
[1764122413896,7.82115696,140.23,140.17,7.13406067]
[1764122414096,16.308864,140.22,140.16,3.85361668]
[1764122414295,16.308864,140.22,140.15,3.16]
[1764122414296,3.85361668,140.2,140.15,3.16]
[1764122414713,0.69,140.19,140.15,10.29516923]
[1764122415060,0.69,140.19,140.15,14.14878591]
[1764122416535,7.82328553,140.19,140.15,3.16]
[1764122416905,0.69,140.18,140.15,10.29518834]
[1764122417619,10.29225415,140.21,140.15,14.14880502]
[1764122417823,0.69,140.21,140.17,3.85361668]
[1764122418118,0.69,140.2,140.17,3.85361668]
[1764122418323,0.69,140.2,140.18,7.13368526]
[1764122418520,0.69,140.2,140.17,10.98776084]
[1764122419718,7.82273025,140.2,140.15,10.29508656]
[1764122419915,7.82273025,140.2,140.15,14.14870324]
[1764122420126,0.69,140.19,140.15,14.14870324]
[1764122421627,0.69,140.21,140.17,3.85361668]
[1764122422944,0.69,140.21,140.17,10.98739326]
[1764122426849,0.69,140.21,140.16,8.80994492]
[1764122426850,7.8222167,140.21,140.16,10.98824848]
[1764122427149,11.67583338,140.21,140.15,14.14861789]
[1764122427338,0.67,140.2,140.15,14.14861789]
[1764122428325,7.1331764,140.19,140.15,14.14861789]
[1764122428823,28.81973408,140.19,140.12,7.13639269]
[1764122429031,4.52361668,140.18,140.12,14.15000937]
[1764122429226,0.67,140.18,140.13,3.85361668]
[1764122429538,0.67,140.18,140.15,3.85361668]
[1764122429740,48.04409505,140.22,140.17,3.85361668]
[1764122429948,0.67,140.2,140.17,3.85361668]
[1764122430239,8.80994492,140.23,140.18,3.85361668]
[1764122430424,0.67,140.21,140.17,7.1340437]
[1764122430624,0.67,140.21,140.18,3.85361668]
[1764122434452,0.67,140.21,140.18,10.98717081]
[1764122435133,0.67,140.21,140.18,3.85361668]
[1764122435648,7.80222669,140.21,140.17,3.85361668]
[1764122435855,7.80222669,140.21,140.15,10.29500249]
[1764122436156,0.67,140.2,140.16,3.85361668]
[1764122436527,7.80279179,140.2,140.16,10.98830106]
[1764122436937,0.67,140.2,140.17,3.85361668]
[1764122437143,7.13219871,140.21,140.17,3.85361668]
[1764122437339,0.67,140.19,140.17,3.85361668]
[1764122438454,0.67,140.19,140.17,10.98776476]
[1764122438853,0.67,140.22,140.17,7.13414808]
[1764122439045,7.80148251,140.23,140.18,3.85361668]
[1764122439450,101.99480045,140.24,140.18,3.16]
[1764122439648,101.99480045,140.24,140.21,3.85361668]
[1764122439852,102.66480045,140.24,140.21,3.85361668]
[1764122440250,0.2,140.25,140.23,3.85361668]
[1764122440440,0.2,140.25,140.24,7.1306332]
[1764122440861,0.2,140.25,140.24,10.98424988]
[1764122441943,0.2,140.25,140.24,7.1306332]
[1764122442146,0.2,140.25,140.24,14.14424988]
[1764122444880,0.2,140.25,140.24,10.2906332]
[1764122445465,0.87,140.25,140.23,10.98457433]
[1764122445651,0.87,140.25,140.22,7.01361668]
[1764122445854,0.67,140.24,140.22,7.01361668]
[1764122446053,0.67,140.24,140.22,3.16]
[1764122446969,0.67,140.24,140.22,10.29158405]
[1764122447666,0.67,140.24,140.22,12.75550156]
[1764122450276,0.67,140.24,140.22,3.16]
[1764122450463,0.67,140.24,140.19,2.46391751]
[1764122450971,0.67,140.24,140.18,5.62391751]
[1764122451282,7.80083572,140.24,140.18,12.75749543]
[1764122451654,0.67,140.23,140.19,2.46391751]
[1764122452647,0.67,140.23,140.18,3.16]
[1764122452648,10.26515095,140.23,140.18,3.16]
[1764122452970,2.46391751,140.22,140.16,12.75850837]
[1764122453162,0.67,140.22,140.17,2.46391751]
[1764122453360,0.72,140.21,140.17,2.46391751]
[1764122454278,0.72,140.21,140.17,9.59778222]
[1764122454971,0.72,140.24,140.19,2.46391751]
[1764122455174,0.2,140.25,140.22,2.46391751]
[1764122455474,0.92,140.25,140.22,2.46391751]
[1764122456166,0.72,140.24,140.22,9.5951876]
[1764122463280,0.72,140.24,140.22,7.13127009]
[1764122463470,0.72,140.24,140.19,9.59659026]
[1764122463871,7.8507074,140.24,140.19,9.59659026]
[1764122464276,0.72,140.23,140.19,9.59659026]
[1764122465091,0.72,140.23,140.2,2.46391751]
[1764122466586,0.72,140.23,140.2,9.59623954]
[1764122467173,0.72,140.23,140.2,7.13232203]
[1764122469186,0.72,140.23,140.2,9.59623954]
[1764122469374,0.92,140.25,140.22,2.46391751]
[1764122470102,0.72,140.24,140.22,2.46391751]
[1764122470868,0.72,140.24,140.22,9.59517465]
[1764122472173,0.72,140.24,140.23,2.46391751]
[1764122472488,0.72,140.24,140.22,9.59517465]
[1764122473711,0.72,140.24,140.21,10.2919687]
[1764122473870,3.18391751,140.24,140.17,9.59777317]
[1764122474066,0.72,140.23,140.18,3.16]
[1764122474267,0.72,140.23,140.18,12.75715382]
[1764122474484,7.85117191,140.23,140.18,12.75715382]
[1764122474796,0.2,140.25,140.22,11.27386243]
[1764122474976,0.2,140.25,140.24,2.46391751]
[1764122475885,0.2,140.25,140.24,11.27386243]
[1764122476892,0.2,140.25,140.24,18.40449563]
[1764122480794,0.2,140.25,140.24,9.59455071]
[1764122482696,0.2,140.25,140.24,18.40449563]
[1764122483999,0.9,140.25,140.24,7.1306332]
[1764122484203,0.9,140.25,140.24,3.16]
[1764122486302,0.9,140.25,140.24,10.2906332]
[1764122486782,0.9,140.25,140.24,3.16]
[1764122487304,0.9,140.25,140.21,12.99675068]
[1764122487474,0.7,140.24,140.22,3.16]
[1764122488984,0.7,140.24,140.22,16.15629636]
[1764122489296,0.7,140.24,140.23,5.86471752]
[1764122490288,0.2,140.25,140.23,5.86471752]
[1764122490496,0.2,140.25,140.24,5.86471752]
[1764122490803,0.9,140.25,140.24,5.86471752]
[1764122491389,0.9,140.25,140.24,12.99535072]
[1764122491590,0.2,140.25,140.24,24.96529564]
[1764122494188,1e-08,140.25,140.24,24.96529564]
[1764122494394,1e-08,140.25,140.24,30.83001316]
[1764122494713,0.1,140.29,140.28,8.80994492]
[1764122494914,0.1,140.29,140.28,17.83466244]
[1764122495522,1e-08,140.29,140.28,24.96326238]
[1764122495817,1e-08,140.29,140.27,12.99367522]
[1764122495818,0.70000001,140.29,140.27,12.99367522]
[1764122495982,0.70000001,140.29,140.28,3.16]
[1764122496693,0.70000001,140.29,140.26,7.12945829]
[1764122496881,0.70000001,140.29,140.26,10.28945829]
[1764122497795,7.82814758,140.29,140.26,3.16]
[1764122498105,5.86471752,140.28,140.21,5.86471752]
[1764122498308,5.86471752,140.28,140.22,3.16]
[1764122498309,5.86471752,140.27,140.22,3.16]
[1764122498602,6.56471752,140.27,140.22,3.16]
[1764122498791,0.7,140.26,140.22,3.16]
[1764122499806,0.7,140.26,140.23,7.13114169]
[1764122500591,0.7,140.26,140.22,10.29150835]
[1764122502226,0.7,140.26,140.22,16.15622587]
[1764122506332,7.12875088,140.28,140.23,5.86471752]
[1764122506530,0.7,140.26,140.23,5.86471752]
[1764122506734,0.7,140.26,140.24,7.1306332]
[1764122507521,0.7,140.26,140.23,7.13095516]
[1764122507695,0.7,140.26,140.23,12.99567268]
[1764122507900,0.7,140.26,140.24,5.86471752]
[1764122508332,0.7,140.26,140.23,30.82352691]
[1764122508532,0.7,140.26,140.23,28.80730085]
[1764122510503,0.7,140.26,140.23,7.13095516]
[1764122510702,0.7,140.26,140.23,10.29095516]
[1764122510935,7.82970683,140.26,140.23,3.16]
[1764122511310,0.7,140.25,140.23,3.16]
[1764122511710,0.7,140.25,140.21,3.16]
[1764122512710,7.83030138,140.25,140.21,10.29205255]
[1764122513113,0.7,140.24,140.21,10.29205255]
[1764122519750,0.7,140.24,140.21,14.14054401]
[1764122519937,7.12941345,140.27,140.22,3.84849146]
[1764122520163,0.67,140.26,140.22,3.84849146]
[1764122520448,0.67,140.26,140.21,14.14054401]
[1764122520944,0.67,140.26,140.21,31.97094127]
[1764122521442,7.79968515,140.26,140.21,10.29205255]
[1764122521639,0.69,140.28,140.23,3.84849146]
[1764122521842,1e-08,140.29,140.26,3.84849146]
[1764122522138,1e-08,140.29,140.27,3.84849146]
[1764122522336,0.69000001,140.29,140.26,3.84849146]
[1764122522516,1e-08,140.29,140.27,7.00849146]
[1764122522712,1e-08,140.29,140.28,12.65843638]
[1764122522912,1e-08,140.29,140.28,19.78703632]
[1764122525340,0.69000001,140.29,140.28,7.12859994]
[1764122526548,0.69000001,140.29,140.28,10.28859994]
[1764122527938,1e-08,140.29,140.28,10.28859994]
[1764122528149,1e-08,140.29,140.28,14.1370914]
[1764122532526,0.69000001,140.29,140.28,14.1370914]
[1764122533540,0.69000001,140.29,140.28,7.00849146]
[1764122533851,0.69000001,140.29,140.28,3.16]
[1764122534454,0.69000001,140.29,140.26,3.16]
[1764122535529,0.69000001,140.29,140.26,10.28951123]
[1764122535930,7.81830401,140.29,140.26,3.16]
[1764122536130,0.69000001,140.29,140.26,3.16]
[1764122536331,0.69,140.28,140.25,7.12992513]
[1764122536642,0.69,140.28,140.26,3.16]
[1764122538032,0.69000001,140.29,140.26,14.13806485]
[1764122540764,1e-08,140.29,140.28,3.84849146]
[1764122540949,1e-08,140.29,140.28,12.65843638]
[1764122542045,1e-08,140.29,140.28,8.80994492]
[1764122542244,1e-08,140.29,140.28,12.65843638]
[1764122542668,1e-08,140.29,140.28,19.78703632]
[1764122546740,1e-08,140.29,140.28,20.49989631]
[1764122546943,1e-08,140.29,140.28,24.34838777]
[1764122547360,1e-08,140.29,140.28,19.78703632]
[1764122549262,1e-08,140.29,140.28,20.49989631]
[1764122549436,1e-08,140.29,140.28,19.78703632]
[1764122551163,1e-08,140.29,140.28,22.94703632]
[1764122557583,1e-08,140.29,140.28,19.09854486]
[1764122557776,1e-08,140.29,140.28,22.94703632]
[1764122559051,1e-08,140.29,140.28,26.79552778]
[1764122559352,1e-08,140.29,140.28,19.09854486]
[1764122559555,0.67000001,140.29,140.28,10.28859994]
[1764122560194,0.67000001,140.29,140.28,14.1370914]
[1764122561694,0.67000001,140.29,140.28,3.16]
[1764122561879,0.67000001,140.29,140.28,10.28859994]
[1764122562260,0.67000001,140.29,140.28,3.16]
[1764122563271,0.67000001,140.29,140.26,10.2694785]
[1764122563671,0.67000001,140.29,140.27,3.84849146]
[1764122563875,1e-08,140.29,140.28,19.64692784]
[1764122565364,0.2,140.33,140.31,8.80994492]
[1764122565574,0.2,140.33,140.32,15.79843638]
[1764122566181,0.2,140.33,140.32,22.92500422]
[1764122568680,0.2,140.36,140.33,8.80994492]
[1764122568857,0.2,140.36,140.35,24.00584692]
[1764122569482,0.2,140.36,140.35,31.13089145]
[1764122570578,0.2,140.36,140.35,35.72407393]
[1764122570876,0.2,140.36,140.35,44.53401885]
[1764122571080,0.1,140.38,140.35,44.53401885]
[1764122571081,0.1,140.38,140.36,8.80994492]
[1764122571271,0.1,140.38,140.36,14.407978]
[1764122571671,0.1,140.38,140.36,21.5325149]
[1764122572581,0.1,140.38,140.36,18.3925149]
[1764122572887,0.1,140.38,140.36,21.5325149]
[1764122573185,0.1,140.38,140.36,12.72256998]
[1764122573186,0.87,140.37,140.36,12.72256998]
[1764122573572,0.87,140.37,140.36,5.59803308]
[1764122573776,0.87,140.37,140.35,2.45803308]
[1764122573966,0.2,140.37,140.36,3.14]
[1764122574575,0.86,140.37,140.36,3.14]
[1764122576969,0.86,140.37,140.36,5.59803308]
[1764122581491,0.86,140.37,140.36,3.14]
[1764122581691,7.98402935,140.37,140.33,5.59803308]
[1764122581901,0.71,140.36,140.33,5.59803308]
[1764122582283,0.71,140.36,140.33,3.14]
[1764122582488,3.16803308,140.36,140.33,3.14]
[1764122582693,0.71,140.35,140.33,3.14]
[1764122582877,7.83538443,140.35,140.33,3.14]
[1764122583079,0.71,140.35,140.33,3.14]
[1764122583380,0.71,140.34,140.33,3.14]
[1764122589793,0.71,140.36,140.33,12.72384209]
[1764122590099,0.2,140.37,140.35,2.45803308]
[1764122590414,0.71,140.36,140.33,5.59803308]
[1764122590585,0.2,140.37,140.35,2.45803308]
[1764122590902,0.91,140.37,140.36,5.59803308]
[1764122591786,0.91,140.37,140.35,2.45803308]
[1764122591993,0.71,140.36,140.34,3.14]
[1764122592896,0.71,140.36,140.33,2.45803308]
[1764122593700,7.83491646,140.36,140.32,5.59803308]
[1764122594099,0.71,140.35,140.32,5.59803308]
[1764122596413,0.71,140.35,140.32,12.72451138]
[1764122596618,0.71,140.35,140.33,2.45803308]
[1764122598214,0.71,140.35,140.34,2.45803308]
[1764122599113,0.71,140.35,140.33,5.59803308]
[1764122599495,0.71,140.35,140.34,2.45803308]
[1764122600395,0.71,140.35,140.33,12.72386614]
[1764122607508,0.71,140.35,140.29,7.12787415]
[1764122607718,7.83507134,140.35,140.3,5.59803308]
[1764122607903,7.83507134,140.35,140.31,2.45803308]
[1764122608103,0.69,140.34,140.31,2.45803308]
[1764122608315,0.69,140.34,140.3,5.59803308]
[1764122609531,0.69,140.34,140.31,7.12707576]
[1764122610731,0.69,140.34,140.31,9.58510884]
[1764122611826,7.81586059,140.34,140.3,3.14]
[1764122612007,7.81586059,140.34,140.27,9.58712537]
[1764122612008,2.45803308,140.33,140.27,9.58712537]
[1764122612200,3.14803308,140.33,140.28,3.14]
[1764122612407,0.69,140.32,140.28,3.14]
[1764122614337,7.81704083,140.32,140.28,3.14]
[1764122614722,0.69,140.31,140.28,3.14]
[1764122615023,0.69,140.31,140.28,12.7265499]
[1764122615625,2.45803308,140.34,140.28,12.7265499]
[1764122615626,7.1259481,140.34,140.3,2.45803308]
[1764122615935,0.69,140.32,140.3,2.45803308]
[1764122619413,0.69,140.32,140.29,9.58570352]
[1764122620134,0.69,140.33,140.3,2.45803308]
[1764122620341,0.69,140.32,140.3,2.45803308]
[1764122620640,0.69,140.33,140.31,2.45803308]
[1764122621036,0.69,140.33,140.3,2.45803308]
[1764122621639,0.69,140.33,140.3,9.58546862]
[1764122623128,0.69,140.33,140.31,2.45803308]
[1764122623634,110.12525728,140.35,140.31,2.45803308]
[1764122623833,103.69,140.35,140.33,2.45803308]
[1764122624214,103.0,140.35,140.33,2.45803308]
[1764122624416,0.69,140.34,140.33,2.45803308]
[1764122624740,103.69,140.35,140.33,2.45803308]
[1764122625041,0.69,140.34,140.33,2.45803308]
[1764122626930,0.69,140.34,140.32,9.5844131]
[1764122631046,0.69,140.34,140.32,7.12638002]
[1764122631224,0.69,140.34,140.32,9.5844131]
[1764122632550,0.69,140.34,140.32,10.97074779]
[1764122634553,103.0,140.35,140.33,3.84436777]
[1764122634733,103.69,140.35,140.33,3.84436777]
[1764122636051,103.0,140.35,140.32,7.12638002]
[1764122636240,103.0,140.35,140.33,3.84436777]
[1764122636441,103.69,140.35,140.33,3.84436777]
[1764122636959,0.69,140.34,140.33,3.84436777]
[1764122637257,103.69,140.35,140.33,10.9704164]
[1764122637833,0.69,140.34,140.33,10.9704164]
[1764122638253,103.0,140.35,140.33,10.9704164]
[1764122638449,103.69,140.35,140.33,10.9704164]
[1764122638650,103.0,140.35,140.33,10.9704164]
[1764122638860,103.69,140.35,140.33,10.9704164]
[1764122640231,0.69,140.34,140.31,6.98436777]
[1764122640440,0.69,140.34,140.32,3.84436777]
[1764122642170,11.66002666,140.34,140.29,7.1280468]
[1764122642464,11.66002666,140.34,140.29,14.11241457]
[1764122642640,0.68,140.33,140.29,14.11241457]
[1764122643039,0.68,140.33,140.28,3.84436777]
[1764122643265,16.308864,140.31,140.26,3.84436777]
[1764122643559,7.12758374,140.3,140.26,3.84436777]
[1764122643737,0.68,140.29,140.26,3.84436777]
[1764122646633,0.68,140.29,140.27,3.84436777]
[1764122648078,0.68,140.29,140.26,10.97397317]
[1764122649063,7.80816539,140.29,140.25,3.14]
[1764122649264,7.80816539,140.29,140.25,6.98436777]
[1764122649476,0.68,140.28,140.25,6.98436777]
[1764122649847,0.68,140.28,140.24,3.84436777]
[1764122650152,0.68,140.28,140.24,3.14]
[1764122651057,7.12910814,140.27,140.24,3.14]
[1764122651537,0.68,140.26,140.23,6.98436777]
[1764122651941,0.68,140.26,140.23,3.14]
[1764122653260,7.80964175,140.26,140.21,15.94197269]
[1764122653454,0.68,140.25,140.21,10.97639554]
[1764122654058,0.68,140.25,140.21,7.13202777]
[1764122655166,0.68,140.25,140.21,11.66639554]
[1764122655346,0.68,140.25,140.21,10.97639554]
[1764122655668,0.68,140.25,140.21,7.13202777]
[1764122656069,0.68,140.25,140.22,0.69]
[1764122656240,0.68,140.25,140.21,16.63197269]
[1764122656567,0.68,140.25,140.21,20.47634046]
[1764122657556,0.68,140.25,140.21,7.13202777]
[1764122657757,3.84436777,140.23,140.18,0.2]
[1764122657953,3.84436777,140.22,140.18,0.2]
[1764122658155,0.68,140.21,140.18,0.2]
[1764122658548,0.68,140.21,140.18,7.33363209]
[1764122658952,0.68,140.21,140.18,0.2]
[1764122659165,7.81119885,140.23,140.19,0.69]
[1764122659468,0.68,140.22,140.18,8.02358496]
[1764122659768,0.68,140.22,140.18,7.33358496]
[1764122660366,7.81172353,140.22,140.18,7.33358496]
[1764122660868,0.68,140.21,140.18,7.33358496]
[1764122661070,3.84436777,140.2,140.18,0.2]
[1764122661567,0.68,140.19,140.18,0.2]
[1764122663869,11.67657834,140.21,140.18,0.2]
[1764122664272,0.7,140.2,140.18,0.2]
[1764122664644,7.83280893,140.2,140.18,0.2]
[1764122664856,11.6771767,140.2,140.18,0.2]
[1764122665072,0.7,140.19,140.18,0.2]
[1764122666275,4.54436777,140.19,140.18,0.2]
[1764122667059,11.67754417,140.19,140.18,0.2]
[1764122667259,4.54436777,140.19,140.18,0.2]
[1764122667475,0.7,140.19,140.18,0.2]
[1764122668581,11.67754417,140.19,140.18,0.2]
[1764122668781,14.83754417,140.19,140.18,0.2]
[1764122670083,31.14640817,140.19,140.18,0.2]
[1764122675983,27.98640817,140.19,140.18,0.2]
[1764122676176,113.97720165,140.2,140.18,0.2]
[1764122676499,107.54436777,140.2,140.18,0.2]
[1764122677172,103.0,140.2,140.18,8.05359688]
[1764122677873,103.0,140.2,140.18,0.92]
[1764122678575,4.54436777,140.19,140.18,0.2]
[1764122680096,11.67754417,140.19,140.18,0.2]
[1764122693702,14.83754417,140.19,140.18,0.2]
[1764122694577,13.46075708,140.19,140.18,0.2]
[1764122702389,103.0,140.2,140.18,0.91]
[1764122702390,112.60042881,140.2,140.18,0.91]
[1764122702619,103.0,140.2,140.18,0.91]
[1764122702839,103.0,140.2,140.19,0.71]
[1764122702992,0.66,140.24,140.19,0.71]
[1764122703310,5.62758068,140.23,140.19,0.71]
[1764122703612,2.46758068,140.22,140.19,0.71]
[1764122704315,9.59928003,140.22,140.19,0.71]
[1764122705940,10.25928003,140.22,140.19,0.71]
[1764122706925,12.75890645,140.23,140.19,7.8431589]
[1764122707332,13.41890645,140.23,140.2,0.71]
[1764122707545,0.66,140.22,140.18,0.2]
[1764122707757,2.46758068,140.2,140.18,0.2]
[1764122707938,18.77644468,140.19,140.18,0.2]
[1764122708444,19.43644468,140.19,140.18,0.2]
[1764122709039,26.56962108,140.19,140.18,0.2]
[1764122709258,29.72962108,140.19,140.18,0.2]
[1764122713431,27.2620404,140.19,140.18,0.2]
[1764122715746,29.72962108,140.19,140.18,0.2]
[1764122725747,38.539566,140.19,140.18,0.2]
[1764122728057,27.5863896,140.17,140.15,0.2]
[1764122728349,117.4375256,140.16,140.15,0.2]
[1764122728532,118.1075256,140.16,140.15,0.2]
[1764122729241,109.29758068,140.16,140.15,0.2]
[1764122730632,125.24222879,140.16,140.15,0.2]
[1764122731869,105.46758068,140.16,140.15,0.91]
[1764122732035,103.0,140.16,140.15,0.91]
[1764122732854,21.93644468,140.19,140.15,0.91]
[1764122733149,5.62758068,140.19,140.16,0.71]
[1764122733347,21.93644468,140.19,140.16,0.71]
[1764122733529,2.46758068,140.18,140.16,0.71]
[1764122733853,2.46758068,140.17,140.15,0.2]
[1764122734151,2.46758068,140.17,140.15,0.91]
[1764122734359,2.46758068,140.18,140.15,0.91]
[1764122734559,138.65864992,140.22,140.16,0.71]
[1764122734560,7.13277052,140.2,140.16,0.71]
[1764122734736,103.0,140.22,140.16,3.17758068]
[1764122734939,112.59935306,140.22,140.16,28.14859877]
[1764122735247,112.59935306,140.22,140.17,0.71]
[1764122735442,128.90821706,140.22,140.17,0.71]
[1764122736138,2.46758068,140.21,140.17,0.71]
[1764122737845,110.13177238,140.22,140.17,7.84399778]
[1764122738242,110.13177238,140.22,140.18,0.71]
[1764122738861,7.13177238,140.22,140.18,7.84343272]
[1764122739158,9.59885315,140.23,140.18,7.84343272]
[1764122739362,9.59885315,140.23,140.19,0.71]
[1764122739562,2.46758068,140.23,140.19,0.71]
[1764122739740,0.67,140.29,140.21,2.46758068]
[1764122739939,16.308864,140.27,140.21,2.46758068]
[1764122740139,18.77644468,140.27,140.22,0.71]
[1764122740646,2.46758068,140.26,140.22,0.71]
[1764122740866,2.46758068,140.25,140.22,0.71]
[1764122741067,9.59795654,140.25,140.22,0.71]
[1764122742057,16.308864,140.26,140.22,7.84159232]
[1764122742255,9.59653658,140.28,140.22,9.599173]
[1764122742446,16.308864,140.26,140.23,0.71]
[1764122742643,25.90540058,140.28,140.23,0.71]
[1764122743856,25.90540058,140.28,140.23,7.84096048]
[1764122744062,12.75577398,140.29,140.23,7.84096048]
[1764122744372,12.75577398,140.29,140.24,0.71]
[1764122744568,17.8308635,140.34,140.25,11.2775256]
[1764122744867,3.13758068,140.36,140.29,2.46758068]
[1764122745068,2.46758068,140.35,140.29,2.46758068]
[1764122745258,2.46758068,140.34,140.3,0.71]
[1764122745454,9.59345152,140.34,140.3,0.71]
[1764122745660,9.59345152,140.34,140.27,0.71]